[Event "Titled Tuesday Blitz November 01 Early 2022"]
[White "Matveeva, Olga"]
[Black "Brueckner, Thomas"]
[WhiteFideId "24107018"]
[BlackFideId "4600452"]
[WhiteElo "2055"]
[BlackElo "2332"]
[Result "1/2-1/2"]
[Round "11"]
[TimeControl "180+1"]
[Date "2022.11.02"]
[WhiteClock "0:00:46"]
[BlackClock "0:00:39"]

1. d4 {[%clk 0:03:00]}  Nf6 {[%clk 0:02:58]} 2. c4 {[%clk 0:03:01]}  g6 {[%clk 0:02:58]} 3. g3 {[%clk 0:03:01]}  Bg7 {[%clk 0:02:57]} 4. Bg2 {[%clk 0:03:01]}  O-O {[%clk 0:02:55]} 5. Nf3 {[%clk 0:03:01]}  d6 {[%clk 0:02:55]} 6. O-O {[%clk 0:03:01]}  Nc6 {[%clk 0:02:55]} 7. Nc3 {[%clk 0:03:01]}  e5 {[%clk 0:02:55]} 8. d5 {[%clk 0:02:59]}  Nb8 {[%clk 0:02:55]} 9. e4 {[%clk 0:02:58]}  a5 {[%clk 0:02:55]} 10. Ne1 {[%clk 0:02:57]}  Na6 {[%clk 0:02:54]} 11. Nd3 {[%clk 0:02:57]}  Nd7 {[%clk 0:02:41]} 12. f4 {[%clk 0:02:52]}  exf4 {[%clk 0:02:37]} 13. Bxf4 {[%clk 0:02:48]}  Nac5 {[%clk 0:02:26]} 14. Kh1 {[%clk 0:02:40]}  Nxd3 {[%clk 0:02:22]} 15. Qxd3 {[%clk 0:02:41]}  Ne5 {[%clk 0:02:23]} 16. Qe2 {[%clk 0:02:35]}  Bg4 {[%clk 0:02:19]} 17. Qf2 {[%clk 0:02:25]}  Nxc4 {[%clk 0:02:16]} 18. h3 {[%clk 0:02:24]}  Bd7 {[%clk 0:02:16]} 19. Rac1 {[%clk 0:02:19]}  Ne5 {[%clk 0:02:14]} 20. Qd2 {[%clk 0:02:00]}  a4 {[%clk 0:01:54]} 21. Bh6 {[%clk 0:01:52]}  b5 {[%clk 0:01:37]} 22. Bxg7 {[%clk 0:01:48]}  Kxg7 {[%clk 0:01:38]} 23. Ne2 {[%clk 0:01:48]}  h5 {[%clk 0:01:25]} 24. Nd4 {[%clk 0:01:45]}  h4 {[%clk 0:00:58]} 25. g4 {[%clk 0:01:45]}  g5 {[%clk 0:00:58]} 26. Rf2 {[%clk 0:01:37]}  f6 {[%clk 0:00:56]} 27. Bf1 {[%clk 0:01:28]}  Rb8 {[%clk 0:00:49]} 28. Qc3 {[%clk 0:01:22]}  Rb7 {[%clk 0:00:48]} 29. Be2 {[%clk 0:01:13]}  b4 {[%clk 0:00:48]} 30. Qe3 {[%clk 0:01:07]}  Qe7 {[%clk 0:00:43]} 31. Kg2 {[%clk 0:00:58]}  Kg6 {[%clk 0:00:43]} 32. Ba6 {[%clk 0:00:53]}  Rb6 {[%clk 0:00:40]} 33. Bd3 {[%clk 0:00:48]}  Rb7 {[%clk 0:00:38]} 34. Ba6 {[%clk 0:00:46]}  Rb6 {[%clk 0:00:38]} 35. Bd3 {[%clk 0:00:46]}  Rb7 {[%clk 0:00:39]} 36. Ba6 {[%clk 0:00:46]} 1/2-1/2


[Site "https://www.chess.com"]

[Event "Titled Tuesday Blitz November 01 Early 2022"]
[White "Mayaud, Raphael"]
[Black "Selkirk, Rebecca"]
[WhiteFideId "627151"]
[BlackFideId "14306514"]
[WhiteElo "2191"]
[BlackElo "1649"]
[Result "1-0"]
[Round "11"]
[TimeControl "180+1"]
[Date "2022.11.02"]
[WhiteClock "0:00:11"]
[BlackClock "0:00:08"]

1. d4 {[%clk 0:02:58]}  d5 {[%clk 0:02:59]} 2. c4 {[%clk 0:02:58]}  c6 {[%clk 0:02:59]} 3. Nf3 {[%clk 0:02:58]}  Nf6 {[%clk 0:03:00]} 4. Nc3 {[%clk 0:02:58]}  e6 {[%clk 0:03:00]} 5. Bg5 {[%clk 0:02:56]}  h6 {[%clk 0:02:56]} 6. Bxf6 {[%clk 0:02:55]}  Qxf6 {[%clk 0:02:56]} 7. Qc2 {[%clk 0:02:51]}  dxc4 {[%clk 0:02:50]} 8. e4 {[%clk 0:02:31]}  b5 {[%clk 0:02:48]} 9. Be2 {[%clk 0:02:25]}  Bb7 {[%clk 0:02:30]} 10. O-O {[%clk 0:02:24]}  a6 {[%clk 0:02:24]} 11. a4 {[%clk 0:01:54]}  Qg6 {[%clk 0:02:16]} 12. Ne5 {[%clk 0:01:51]}  Qg5 {[%clk 0:01:46]} 13. f4 {[%clk 0:01:48]}  Qd8 {[%clk 0:01:44]} 14. f5 {[%clk 0:01:40]}  Qxd4+ {[%clk 0:01:43]} 15. Kh1 {[%clk 0:01:40]}  Qxe5 {[%clk 0:01:43]} 16. fxe6 {[%clk 0:01:40]}  fxe6 {[%clk 0:01:23]} 17. Qd1 {[%clk 0:01:28]}  Bd6 {[%clk 0:01:20]} 18. Bh5+ {[%clk 0:01:28]}  Kd8 {[%clk 0:01:12]} 19. g3 {[%clk 0:01:27]}  Kc8 {[%clk 0:01:11]} 20. Rf7 {[%clk 0:01:20]}  Nd7 {[%clk 0:00:50]} 21. Qf3 {[%clk 0:00:59]}  c5 {[%clk 0:00:44]} 22. Re1 {[%clk 0:00:57]}  b4 {[%clk 0:00:34]} 23. Nd1 {[%clk 0:00:55]}  Nf6 {[%clk 0:00:33]} 24. Bg6 {[%clk 0:00:32]}  Rd8 {[%clk 0:00:18]} 25. Nf2 {[%clk 0:00:32]}  Qxb2 {[%clk 0:00:17]} 26. Ng4 {[%clk 0:00:22]}  Nxg4 {[%clk 0:00:15]} 27. Qxg4 {[%clk 0:00:23]}  Qd2 {[%clk 0:00:12]} 28. Qxe6+ {[%clk 0:00:22]}  Kb8 {[%clk 0:00:12]} 29. Ref1 {[%clk 0:00:18]}  Bc8 {[%clk 0:00:08]} 30. Qd5 {[%clk 0:00:12]}  Bb7 {[%clk 0:00:08]} 31. Qxd2 {[%clk 0:00:11]} 1-0


[Site "https://www.chess.com"]

[Event "Titled Tuesday Blitz November 01 Early 2022"]
[White "Narayanan, Srinath"]
[Black "Ljukin, Sergei"]
[WhiteFideId "5018420"]
[BlackFideId "14102200"]
[WhiteElo "2459"]
[BlackElo "2312"]
[Result "1-0"]
[Round "11"]
[TimeControl "180+1"]
[Date "2022.11.02"]
[WhiteClock "0:00:05"]
[BlackClock "0:00:01"]

1. d4 {[%clk 0:02:57]}  d5 {[%clk 0:02:56]} 2. Bf4 {[%clk 0:02:56]}  Nf6 {[%clk 0:02:55]} 3. e3 {[%clk 0:02:56]}  c5 {[%clk 0:02:55]} 4. Nd2 {[%clk 0:02:56]}  Nc6 {[%clk 0:02:55]} 5. Ngf3 {[%clk 0:02:55]}  Bg4 {[%clk 0:02:54]} 6. h3 {[%clk 0:02:55]}  Bh5 {[%clk 0:02:53]} 7. Bb5 {[%clk 0:02:51]}  Qb6 {[%clk 0:02:50]} 8. c4 {[%clk 0:02:49]}  dxc4 {[%clk 0:02:44]} 9. a4 {[%clk 0:02:50]}  cxd4 {[%clk 0:02:31]} 10. Nxc4 {[%clk 0:02:49]}  Qc5 {[%clk 0:02:29]} 11. g4 {[%clk 0:02:48]}  Qb4+ {[%clk 0:02:23]} 12. Kf1 {[%clk 0:02:46]}  Bg6 {[%clk 0:02:23]} 13. Nxd4 {[%clk 0:02:45]}  Be4 {[%clk 0:02:18]} 14. f3 {[%clk 0:02:44]}  a6 {[%clk 0:02:17]} 15. Nb6 {[%clk 0:02:18]}  Rd8 {[%clk 0:02:08]} 16. Bc7 {[%clk 0:02:02]}  Rxd4 {[%clk 0:01:53]} 17. exd4 {[%clk 0:02:01]}  axb5 {[%clk 0:01:53]} 18. axb5 {[%clk 0:01:58]}  Qxb5+ {[%clk 0:01:43]} 19. Kg1 {[%clk 0:01:58]}  e6 {[%clk 0:01:13]} 20. Ra8+ {[%clk 0:01:54]}  Ke7 {[%clk 0:01:13]} 21. fxe4 {[%clk 0:01:49]}  Nxe4 {[%clk 0:01:13]} 22. Qf3 {[%clk 0:01:47]}  f5 {[%clk 0:00:52]} 23. gxf5 {[%clk 0:01:28]}  exf5 {[%clk 0:00:52]} 24. Rh2 {[%clk 0:01:29]}  Nxd4 {[%clk 0:00:32]} 25. Qa3+ {[%clk 0:01:28]}  Kf7 {[%clk 0:00:31]} 26. Qa2+ {[%clk 0:01:28]}  Nb3 {[%clk 0:00:20]} 27. Rc2 {[%clk 0:01:03]}  Bc5+ {[%clk 0:00:19]} 28. Kg2 {[%clk 0:00:58]}  Rxa8 {[%clk 0:00:16]} 29. Qxa8 {[%clk 0:00:58]}  Qc6 {[%clk 0:00:16]} 30. Qd8 {[%clk 0:00:37]}  Ned2+ {[%clk 0:00:15]} 31. Qd5+ {[%clk 0:00:29]}  Qxd5+ {[%clk 0:00:12]} 32. Nxd5 {[%clk 0:00:30]}  Ne4 {[%clk 0:00:10]} 33. Nf4 {[%clk 0:00:20]}  g5 {[%clk 0:00:09]} 34. Nd3 {[%clk 0:00:20]}  Bd4 {[%clk 0:00:07]} 35. Be5 {[%clk 0:00:16]}  Bxe5 {[%clk 0:00:06]} 36. Nxe5+ {[%clk 0:00:17]}  Ke6 {[%clk 0:00:06]} 37. Nf3 {[%clk 0:00:18]}  g4 {[%clk 0:00:05]} 38. Nh4 {[%clk 0:00:11]}  h5 {[%clk 0:00:04]} 39. Rc7 {[%clk 0:00:11]}  f4 {[%clk 0:00:03]} 40. hxg4 {[%clk 0:00:10]}  hxg4 {[%clk 0:00:03]} 41. Rxb7 {[%clk 0:00:09]}  f3+ {[%clk 0:00:03]} 42. Nxf3 {[%clk 0:00:08]}  gxf3+ {[%clk 0:00:03]} 43. Kxf3 {[%clk 0:00:09]}  Nec5 {[%clk 0:00:03]} 44. Rh7 {[%clk 0:00:08]}  Kd5 {[%clk 0:00:03]} 45. Ke3 {[%clk 0:00:08]}  Kc4 {[%clk 0:00:04]} 46. Rh2 {[%clk 0:00:05]}  Kb4 {[%clk 0:00:04]} 47. Rc2 {[%clk 0:00:05]}  Kb5 {[%clk 0:00:04]} 48. Kf4 {[%clk 0:00:05]}  Kb4 {[%clk 0:00:04]} 49. Ke5 {[%clk 0:00:05]}  Kb5 {[%clk 0:00:05]} 50. Kd5 {[%clk 0:00:05]}  Kb4 {[%clk 0:00:05]} 51. Rc3 {[%clk 0:00:05]}  Kb5 {[%clk 0:00:05]} 52. Rc4 {[%clk 0:00:05]}  Na6 {[%clk 0:00:03]} 53. Rc8 {[%clk 0:00:04]}  Nac5 {[%clk 0:00:02]} 54. Rb8+ {[%clk 0:00:04]}  Ka6 {[%clk 0:00:01]} 55. Kc4 {[%clk 0:00:05]} 1-0


[Site "https://www.chess.com"]

[Event "Titled Tuesday Blitz November 01 Early 2022"]
[White "Nurmanova, Alua"]
[Black "Molina, Roberto Junio Brito"]
[WhiteFideId "13729390"]
[BlackFideId "2109450"]
[WhiteElo "2088"]
[BlackElo "2388"]
[Result "0-1"]
[Round "11"]
[TimeControl "180+1"]
[Date "2022.11.01"]
[WhiteClock "0:00:10"]
[BlackClock "0:00:19"]

1. e4 {[%clk 0:03:00]}  c6 {[%clk 0:02:54]} 2. d4 {[%clk 0:03:00]}  d5 {[%clk 0:02:53]} 3. e5 {[%clk 0:03:00]}  Bf5 {[%clk 0:02:52]} 4. h4 {[%clk 0:03:00]}  Qb6 {[%clk 0:02:51]} 5. c4 {[%clk 0:02:59]}  dxc4 {[%clk 0:02:50]} 6. Na3 {[%clk 0:02:57]}  Bd3 {[%clk 0:02:42]} 7. Bxd3 {[%clk 0:02:51]}  cxd3 {[%clk 0:02:42]} 8. Qxd3 {[%clk 0:02:51]}  e6 {[%clk 0:02:40]} 9. Nc4 {[%clk 0:02:49]}  Qd8 {[%clk 0:02:39]} 10. Nf3 {[%clk 0:02:48]}  Nd7 {[%clk 0:02:37]} 11. O-O {[%clk 0:02:43]}  Nb6 {[%clk 0:02:35]} 12. Bg5 {[%clk 0:02:40]}  Qd5 {[%clk 0:02:32]} 13. Ne3 {[%clk 0:02:38]}  Qd7 {[%clk 0:02:31]} 14. Qb3 {[%clk 0:02:28]}  h6 {[%clk 0:02:23]} 15. Bf4 {[%clk 0:02:27]}  Ne7 {[%clk 0:02:20]} 16. Bh2 {[%clk 0:02:24]}  Ned5 {[%clk 0:02:18]} 17. Rac1 {[%clk 0:02:20]}  Be7 {[%clk 0:02:15]} 18. h5 {[%clk 0:02:17]}  O-O-O {[%clk 0:02:09]} 19. a4 {[%clk 0:02:12]}  a5 {[%clk 0:02:04]} 20. Rfd1 {[%clk 0:01:49]}  Kb8 {[%clk 0:01:52]} 21. Nd2 {[%clk 0:01:45]}  Bb4 {[%clk 0:01:45]} 22. Ne4 {[%clk 0:01:29]}  Ka7 {[%clk 0:01:39]} 23. Nc5 {[%clk 0:01:20]}  Qe7 {[%clk 0:01:36]} 24. Nc4 {[%clk 0:01:04]}  Nxc4 {[%clk 0:01:32]} 25. Qxc4 {[%clk 0:01:05]}  g6 {[%clk 0:01:30]} 26. hxg6 {[%clk 0:01:04]}  fxg6 {[%clk 0:01:30]} 27. Nd3 {[%clk 0:00:53]}  g5 {[%clk 0:01:25]} 28. Kh1 {[%clk 0:00:45]}  Rhf8 {[%clk 0:01:21]} 29. Nxb4 {[%clk 0:00:31]}  Qxb4 {[%clk 0:01:09]} 30. Qe2 {[%clk 0:00:29]}  Qxa4 {[%clk 0:00:57]} 31. Ra1 {[%clk 0:00:29]}  Qb4 {[%clk 0:00:56]} 32. Bg3 {[%clk 0:00:22]}  b6 {[%clk 0:00:54]} 33. f3 {[%clk 0:00:22]}  Qb5 {[%clk 0:00:51]} 34. Qe4 {[%clk 0:00:21]}  Rf5 {[%clk 0:00:48]} 35. Be1 {[%clk 0:00:20]}  Kb7 {[%clk 0:00:44]} 36. Rdc1 {[%clk 0:00:20]}  Rd7 {[%clk 0:00:43]} 37. g4 {[%clk 0:00:20]}  Rf4 {[%clk 0:00:42]} 38. Qg6 {[%clk 0:00:20]}  Qf1+ {[%clk 0:00:39]} 39. Kh2 {[%clk 0:00:20]}  Qe2+ {[%clk 0:00:25]} 40. Kg1 {[%clk 0:00:17]}  Rxf3 {[%clk 0:00:22]} 41. Qxe6 {[%clk 0:00:10]}  Rf1# {[%clk 0:00:19]} 0-1


[Site "https://www.chess.com"]

[Event "Titled Tuesday Blitz November 01 Early 2022"]
[White "Odegov, Artem"]
[Black "Izuzquiza Gonzalez, Javier"]
[WhiteFideId "34183644"]
[BlackFideId "3101029"]
[WhiteElo "2298"]
[BlackElo "2034"]
[Result "1-0"]
[Round "11"]
[TimeControl "180+1"]
[Date "2022.11.02"]
[WhiteClock "0:01:44"]
[BlackClock "0:00:22"]

1. b3 {[%clk 0:02:54]}  c5 {[%clk 0:02:59]} 2. Bb2 {[%clk 0:02:54]}  Nc6 {[%clk 0:02:59]} 3. f4 {[%clk 0:02:55]}  d5 {[%clk 0:02:56]} 4. Nf3 {[%clk 0:02:55]}  Nf6 {[%clk 0:02:55]} 5. e3 {[%clk 0:02:55]}  g6 {[%clk 0:02:55]} 6. Be2 {[%clk 0:02:51]}  Bg7 {[%clk 0:02:55]} 7. O-O {[%clk 0:02:52]}  O-O {[%clk 0:02:56]} 8. d3 {[%clk 0:02:52]}  Ng4 {[%clk 0:02:29]} 9. Bxg7 {[%clk 0:02:51]}  Kxg7 {[%clk 0:02:23]} 10. Qd2 {[%clk 0:02:49]}  d4 {[%clk 0:02:23]} 11. e4 {[%clk 0:02:46]}  Ne3 {[%clk 0:02:21]} 12. Rf2 {[%clk 0:02:46]}  Nb4 {[%clk 0:02:21]} 13. Na3 {[%clk 0:02:46]}  Qa5 {[%clk 0:02:20]} 14. Nc4 {[%clk 0:02:46]}  Qd8 {[%clk 0:02:04]} 15. Nxe3 {[%clk 0:02:29]}  dxe3 {[%clk 0:02:05]} 16. Qc3+ {[%clk 0:02:30]}  Kg8 {[%clk 0:01:58]} 17. Rff1 {[%clk 0:02:30]}  Qd6 {[%clk 0:01:51]} 18. Ne5 {[%clk 0:02:20]}  f6 {[%clk 0:01:35]} 19. Nc4 {[%clk 0:02:20]}  Qd4 {[%clk 0:01:35]} 20. Qxd4 {[%clk 0:02:16]}  cxd4 {[%clk 0:01:36]} 21. Rfc1 {[%clk 0:02:16]}  b5 {[%clk 0:01:30]} 22. Na5 {[%clk 0:02:14]}  Bd7 {[%clk 0:01:25]} 23. a3 {[%clk 0:02:11]}  Na6 {[%clk 0:01:12]} 24. c3 {[%clk 0:02:10]}  e5 {[%clk 0:01:12]} 25. cxd4 {[%clk 0:02:05]}  exd4 {[%clk 0:01:10]} 26. Rc2 {[%clk 0:02:06]}  Rac8 {[%clk 0:01:09]} 27. Rac1 {[%clk 0:02:07]}  Rxc2 {[%clk 0:01:09]} 28. Rxc2 {[%clk 0:02:07]}  Rc8 {[%clk 0:01:09]} 29. Rxc8+ {[%clk 0:02:08]}  Bxc8 {[%clk 0:01:10]} 30. Nc6 {[%clk 0:02:09]}  Be6 {[%clk 0:01:00]} 31. Nxd4 {[%clk 0:02:08]}  Bd7 {[%clk 0:00:59]} 32. g3 {[%clk 0:02:07]}  Nc5 {[%clk 0:00:59]} 33. Kg2 {[%clk 0:02:07]}  a5 {[%clk 0:00:52]} 34. Kf3 {[%clk 0:02:05]}  a4 {[%clk 0:00:53]} 35. bxa4 {[%clk 0:02:04]}  Nxa4 {[%clk 0:00:52]} 36. Kxe3 {[%clk 0:02:03]}  Nc3 {[%clk 0:00:53]} 37. Bf1 {[%clk 0:02:00]}  Kf7 {[%clk 0:00:47]} 38. Nc2 {[%clk 0:01:59]}  Ke6 {[%clk 0:00:39]} 39. d4 {[%clk 0:01:58]}  Kd6 {[%clk 0:00:34]} 40. Kd3 {[%clk 0:01:56]}  Na4 {[%clk 0:00:30]} 41. Nb4 {[%clk 0:01:54]}  Nb2+ {[%clk 0:00:26]} 42. Kc2 {[%clk 0:01:53]}  Na4 {[%clk 0:00:25]} 43. e5+ {[%clk 0:01:53]}  fxe5 {[%clk 0:00:25]} 44. fxe5+ {[%clk 0:01:54]}  Ke6 {[%clk 0:00:24]} 45. Bh3+ {[%clk 0:01:53]}  Ke7 {[%clk 0:00:24]} 46. Nd5+ {[%clk 0:01:53]}  Kd8 {[%clk 0:00:23]} 47. Bxd7 {[%clk 0:01:49]}  Kxd7 {[%clk 0:00:24]} 48. Kb3 {[%clk 0:01:43]}  Ke6 {[%clk 0:00:23]} 49. Nf4+ {[%clk 0:01:44]}  Kf5 {[%clk 0:00:22]} 50. e6 {[%clk 0:01:44]}  Nb6 {[%clk 0:00:22]} 51. e7 {[%clk 0:01:44]} 1-0


[Site "https://www.chess.com"]

[Event "Titled Tuesday Blitz November 01 Early 2022"]
[White "Orozbaev, Eldiar"]
[Black "Yeletsky, Ivan"]
[WhiteFideId "13802240"]
[BlackFideId "24180327"]
[WhiteElo "2244"]
[BlackElo "2391"]
[Result "0-1"]
[Round "11"]
[TimeControl "180+1"]
[Date "2022.11.01"]
[WhiteClock "0:00:02"]
[BlackClock "0:00:14"]

1. e4 {[%clk 0:02:52]}  Nf6 {[%clk 0:02:55]} 2. e5 {[%clk 0:02:52]}  Nd5 {[%clk 0:02:55]} 3. Nf3 {[%clk 0:02:53]}  d6 {[%clk 0:02:55]} 4. d4 {[%clk 0:02:53]}  dxe5 {[%clk 0:02:56]} 5. Nxe5 {[%clk 0:02:54]}  c6 {[%clk 0:02:56]} 6. Be2 {[%clk 0:02:52]}  Bf5 {[%clk 0:02:55]} 7. c3 {[%clk 0:02:51]}  Nd7 {[%clk 0:02:55]} 8. O-O {[%clk 0:02:51]}  e6 {[%clk 0:02:52]} 9. Nd2 {[%clk 0:02:49]}  Nxe5 {[%clk 0:02:47]} 10. dxe5 {[%clk 0:02:49]}  Nf4 {[%clk 0:02:47]} 11. Re1 {[%clk 0:02:34]}  Qg5 {[%clk 0:02:05]} 12. g3 {[%clk 0:02:07]}  O-O-O {[%clk 0:01:57]} 13. Bf1 {[%clk 0:01:54]}  Bc5 {[%clk 0:01:46]} 14. Qf3 {[%clk 0:01:47]}  Nd3 {[%clk 0:01:31]} 15. Bxd3 {[%clk 0:01:22]}  Rxd3 {[%clk 0:01:30]} 16. Qe2 {[%clk 0:01:19]}  Rxg3+ {[%clk 0:00:54]} 17. Kh1 {[%clk 0:00:54]}  Rh3 {[%clk 0:00:49]} 18. f3 {[%clk 0:00:15]}  Qh5 {[%clk 0:00:45]} 19. Nf1 {[%clk 0:00:15]}  Rd8 {[%clk 0:00:43]} 20. Be3 {[%clk 0:00:15]}  Bxe3 {[%clk 0:00:38]} 21. Nxe3 {[%clk 0:00:16]}  Bd3 {[%clk 0:00:33]} 22. Qg2 {[%clk 0:00:15]}  Qxf3 {[%clk 0:00:32]} 23. Rad1 {[%clk 0:00:09]}  Be4 {[%clk 0:00:23]} 24. Rxd8+ {[%clk 0:00:07]}  Kxd8 {[%clk 0:00:24]} 25. Qxf3 {[%clk 0:00:07]}  Rxf3 {[%clk 0:00:25]} 26. Kg1 {[%clk 0:00:08]}  Bd5 {[%clk 0:00:15]} 27. c4 {[%clk 0:00:06]}  Be4 {[%clk 0:00:16]} 28. b3 {[%clk 0:00:05]}  Rf4 {[%clk 0:00:15]} 29. Rd1+ {[%clk 0:00:04]}  Kc7 {[%clk 0:00:14]} 30. Rd2 {[%clk 0:00:04]}  Bg6 {[%clk 0:00:13]} 31. Kg2 {[%clk 0:00:02]}  Re4 {[%clk 0:00:14]} 32. Kg3 {[%clk 0:00:02]}  Rxe5 {[%clk 0:00:14]} 33. Kf4 {[%clk 0:00:01]}  Re4+ {[%clk 0:00:15]} 34. Kf3 {[%clk 0:00:02]}  f5 {[%clk 0:00:15]} 35. c5 {[%clk 0:00:02]}  Bh5+ {[%clk 0:00:16]} 36. Kf2 {[%clk 0:00:03]}  Re5 {[%clk 0:00:15]} 37. Nc4 {[%clk 0:00:03]}  Rd5 {[%clk 0:00:14]} 38. Rc2 {[%clk 0:00:02]}  Rxc5 {[%clk 0:00:14]} 39. Rc1 {[%clk 0:00:03]}  b5 {[%clk 0:00:14]} 40. Rg1 {[%clk 0:00:02]}  bxc4 {[%clk 0:00:14]} 0-1


[Site "https://www.chess.com"]

[Event "Titled Tuesday Blitz November 01 Early 2022"]
[White "Osinovsky, Stepan"]
[Black "Najdin, Danil"]
[WhiteFideId "4157354"]
[BlackFideId "4172426"]
[WhiteElo "2222"]
[BlackElo "2240"]
[Result "1/2-1/2"]
[Round "11"]
[TimeControl "180+1"]
[Date "2022.11.02"]
[WhiteClock "0:00:01"]
[BlackClock "0:00:02"]

1. Nf3 {[%clk 0:03:00]}  Nf6 {[%clk 0:02:49]} 2. g3 {[%clk 0:03:01]}  c5 {[%clk 0:02:42]} 3. Bg2 {[%clk 0:03:02]}  Nc6 {[%clk 0:02:41]} 4. O-O {[%clk 0:03:03]}  e6 {[%clk 0:02:40]} 5. d3 {[%clk 0:03:03]}  d5 {[%clk 0:02:39]} 6. Nbd2 {[%clk 0:03:01]}  Be7 {[%clk 0:02:38]} 7. e4 {[%clk 0:03:01]}  O-O {[%clk 0:02:39]} 8. Re1 {[%clk 0:03:00]}  b5 {[%clk 0:02:39]} 9. e5 {[%clk 0:02:57]}  Nd7 {[%clk 0:02:38]} 10. h4 {[%clk 0:02:56]}  a5 {[%clk 0:02:29]} 11. h5 {[%clk 0:02:55]}  b4 {[%clk 0:02:24]} 12. h6 {[%clk 0:02:54]}  g6 {[%clk 0:02:24]} 13. Nf1 {[%clk 0:02:52]}  a4 {[%clk 0:02:19]} 14. a3 {[%clk 0:02:46]}  c4 {[%clk 0:02:11]} 15. d4 {[%clk 0:02:43]}  c3 {[%clk 0:02:01]} 16. bxc3 {[%clk 0:02:42]}  bxa3 {[%clk 0:02:02]} 17. Bxa3 {[%clk 0:02:39]}  Bxa3 {[%clk 0:01:58]} 18. Rxa3 {[%clk 0:02:40]}  Nb6 {[%clk 0:01:58]} 19. Ne3 {[%clk 0:02:38]}  Na5 {[%clk 0:01:55]} 20. Nd2 {[%clk 0:02:34]}  Ba6 {[%clk 0:01:52]} 21. Ng4 {[%clk 0:02:23]}  Nac4 {[%clk 0:01:49]} 22. Nxc4 {[%clk 0:02:21]}  Nxc4 {[%clk 0:01:46]} 23. Nf6+ {[%clk 0:02:17]}  Kh8 {[%clk 0:01:45]} 24. Ra1 {[%clk 0:02:03]}  Qa5 {[%clk 0:01:45]} 25. Qf3 {[%clk 0:02:00]}  a3 {[%clk 0:01:45]} 26. Nxd5 {[%clk 0:01:39]}  Qd8 {[%clk 0:01:42]} 27. Nb4 {[%clk 0:01:33]}  Ra7 {[%clk 0:01:25]} 28. Nc6 {[%clk 0:01:31]}  Bb7 {[%clk 0:01:25]} 29. Nxd8 {[%clk 0:00:38]}  Bxf3 {[%clk 0:01:24]} 30. Bxf3 {[%clk 0:00:38]}  Rxd8 {[%clk 0:01:24]} 31. Be2 {[%clk 0:00:38]}  Rc8 {[%clk 0:01:16]} 32. Reb1 {[%clk 0:00:35]}  Nb2 {[%clk 0:01:14]} 33. c4 {[%clk 0:00:33]}  Kg8 {[%clk 0:01:10]} 34. c5 {[%clk 0:00:32]}  f6 {[%clk 0:01:05]} 35. Bg4 {[%clk 0:00:23]}  Kf7 {[%clk 0:01:04]} 36. exf6 {[%clk 0:00:22]}  Kxf6 {[%clk 0:01:03]} 37. Re1 {[%clk 0:00:22]}  Re8 {[%clk 0:00:51]} 38. c6 {[%clk 0:00:19]}  a2 {[%clk 0:00:50]} 39. Be2 {[%clk 0:00:16]}  Ra5 {[%clk 0:00:41]} 40. c4 {[%clk 0:00:13]}  Rd8 {[%clk 0:00:33]} 41. c7 {[%clk 0:00:10]}  Rc8 {[%clk 0:00:33]} 42. Bg4 {[%clk 0:00:10]}  Ra6 {[%clk 0:00:29]} 43. d5 {[%clk 0:00:09]}  Rxc7 {[%clk 0:00:27]} 44. Rxe6+ {[%clk 0:00:08]}  Rxe6 {[%clk 0:00:26]} 45. Bxe6 {[%clk 0:00:08]}  Ra7 {[%clk 0:00:11]} 46. c5 {[%clk 0:00:08]}  Ke5 {[%clk 0:00:12]} 47. Bg8 {[%clk 0:00:07]}  Nd3 {[%clk 0:00:10]} 48. d6 {[%clk 0:00:06]}  Nxc5 {[%clk 0:00:08]} 49. Rxa2 {[%clk 0:00:02]}  Rxa2 {[%clk 0:00:08]} 50. Bxa2 {[%clk 0:00:03]}  Kxd6 {[%clk 0:00:02]} 51. Bg8 {[%clk 0:00:01]}  Ke7 {[%clk 0:00:02]} 52. Bxh7 {[%clk 0:00:01]}  Kf7 {[%clk 0:00:03]} 53. g4 {[%clk 0:00:01]}  Ne6 {[%clk 0:00:03]} 54. Kg2 {[%clk 0:00:01]}  Nf8 {[%clk 0:00:02]} 55. Bxg6+ {[%clk 0:00:01]}  Kxg6 {[%clk 0:00:02]} 1/2-1/2


[Site "https://www.chess.com"]

[Event "Titled Tuesday Blitz November 01 Early 2022"]
[White "Pap, Gyula"]
[Black "Aizpurua, Patrick Emilio"]
[WhiteFideId "725323"]
[BlackFideId "6600522"]
[WhiteElo "2519"]
[BlackElo "2378"]
[Result "1-0"]
[Round "11"]
[TimeControl "180+1"]
[Date "2022.11.02"]
[WhiteClock "0:01:38"]
[BlackClock "0:00:17"]

1. d4 {[%clk 0:03:00]}  Nf6 {[%clk 0:02:58]} 2. c4 {[%clk 0:03:01]}  g6 {[%clk 0:02:58]} 3. Nc3 {[%clk 0:03:01]}  d6 {[%clk 0:02:58]} 4. e4 {[%clk 0:03:01]}  Bg7 {[%clk 0:02:59]} 5. Be2 {[%clk 0:03:01]}  O-O {[%clk 0:02:59]} 6. Bg5 {[%clk 0:03:02]}  h6 {[%clk 0:02:59]} 7. Be3 {[%clk 0:03:02]}  c5 {[%clk 0:02:57]} 8. d5 {[%clk 0:03:02]}  a6 {[%clk 0:02:57]} 9. Qd2 {[%clk 0:02:58]}  Kh7 {[%clk 0:02:52]} 10. a4 {[%clk 0:02:55]}  Nbd7 {[%clk 0:02:51]} 11. h3 {[%clk 0:02:50]}  Rb8 {[%clk 0:02:48]} 12. Nf3 {[%clk 0:02:50]}  Ne8 {[%clk 0:02:47]} 13. O-O {[%clk 0:02:49]}  Nc7 {[%clk 0:02:32]} 14. Rfe1 {[%clk 0:02:49]}  Nf6 {[%clk 0:02:25]} 15. Bf4 {[%clk 0:02:45]}  Nd7 {[%clk 0:02:15]} 16. Bf1 {[%clk 0:02:40]}  Ne5 {[%clk 0:02:12]} 17. Nxe5 {[%clk 0:02:40]}  dxe5 {[%clk 0:02:13]} 18. Be3 {[%clk 0:02:40]}  b6 {[%clk 0:02:10]} 19. a5 {[%clk 0:02:36]}  bxa5 {[%clk 0:02:05]} 20. Na4 {[%clk 0:02:32]}  f5 {[%clk 0:01:59]} 21. f3 {[%clk 0:02:32]}  fxe4 {[%clk 0:01:55]} 22. fxe4 {[%clk 0:02:32]}  Ne8 {[%clk 0:01:55]} 23. Bxc5 {[%clk 0:02:21]}  Bd7 {[%clk 0:01:46]} 24. Nc3 {[%clk 0:02:16]}  Nd6 {[%clk 0:01:42]} 25. Be3 {[%clk 0:02:16]}  Rb4 {[%clk 0:01:37]} 26. c5 {[%clk 0:02:03]}  Nxe4 {[%clk 0:01:33]} 27. Nxe4 {[%clk 0:02:04]}  Rxe4 {[%clk 0:01:32]} 28. c6 {[%clk 0:02:04]}  Bc8 {[%clk 0:01:27]} 29. Qxa5 {[%clk 0:02:02]}  Qxa5 {[%clk 0:01:01]} 30. Rxa5 {[%clk 0:02:01]}  Rd8 {[%clk 0:01:02]} 31. Bf2 {[%clk 0:01:52]}  Rb4 {[%clk 0:00:56]} 32. Bc5 {[%clk 0:01:51]}  Rxb2 {[%clk 0:00:49]} 33. Bxe7 {[%clk 0:01:51]}  Rg8 {[%clk 0:00:37]} 34. d6 {[%clk 0:01:51]}  Bf5 {[%clk 0:00:31]} 35. d7 {[%clk 0:01:48]}  e4 {[%clk 0:00:31]} 36. Rxf5 {[%clk 0:01:41]}  gxf5 {[%clk 0:00:29]} 37. c7 {[%clk 0:01:41]}  Bd4+ {[%clk 0:00:28]} 38. Kh1 {[%clk 0:01:41]}  Bf2 {[%clk 0:00:24]} 39. Rd1 {[%clk 0:01:41]}  e3 {[%clk 0:00:17]} 40. d8=Q {[%clk 0:01:40]}  e2 {[%clk 0:00:17]} 41. Qxg8+ {[%clk 0:01:38]} 1-0


[Site "https://www.chess.com"]